Workbook

Sheet Лист1
G1: Приложение № 2
C2: Утверждаю
C3: Генеральный директор ОАО ДПО Пластик
C4: С.А. Синигибский
A6: Спецификация объектов основных средств, подлежащего демонтажу в 2014 г.
A8: Р.О. - Предварительно реализация объекта как оборудования
A9: Цех / Производство (указать номер) | B9: Наименование демонтируемого оборудования | C9: Инв. № | E9: Объем лома (экспертно), тн
E10: 3А (сталь) | F10: 5А, 12А (сталь) | G10: 22А (чугун) | H10: Нержав. | I10: Цв. Лом
A11: Незавершенное строительство
A12: н/стр-во | B12: Силосный склад п/этилена (р.о.) | C12: б/н | I12: 300
B13: ИТОГО: | E13: =E12 -> 0 | F13: =F12 -> 0 | G13: =G12 -> 0 | H13: 0 | I13: 300
A14: Цех 40
A15: 40 | B15: Участок "Авиация" (давальческая оснастка) | C15: б/н | I15: 10
A16: 40 | B16: Станок СИТ | C16: 4202574 | F16: 50
A17: 40 | B17: Станок "Кабестан" | C17: 4202594 | F17: 20
B18: ИТОГО: | E18: =SUM(E15:E17) -> 0 | F18: =SUM(F15:F17) -> 70 | G18: =SUM(G15:G17) -> 0 | H18: 0 | I18: 10
A19: Цех 41
A20: 41 | B20: Линия мол.плёнки | C20: 4205084 | F20: 5
A21: 41 | B21: Гранулятор типа Кондукс | C21: 4205163 | F21: 5
A22: 41 | B22: Станок плоско-шлифовальный | C22: 4202307 | F22: 2
A23: 41 | B23: измельчитель ИПР-300 (на грануляторе омикрон№2) | C23: 4205876 | F23: 2
A24: 41 | B24: ЛРП-160-300 №2 | C24: 4202341 | F24: 8
A25: 41 | B25: ЛРП-160-300 №1 | C25: 4202314 | F25: 8
A26: 41 | B26: 6цв.машина FX-680 | C26: 4210230 | F26: 10
A27: 41 | B27: Бункера для хранения сырья 12шт (цвет металл) | C27: 4202358 | H27: 10
B28: ИТОГО: | E28: =SUM(E20:E27) -> 0 | F28: =SUM(F20:F27) -> 40 | G28: =SUM(G20:G27) -> 0 | H28: 10 | I28: 0
A29: Цех 43
A30: 43 | B30: пресс-формы | C30: б/н | E30: 15
A31: 43 | B31: kyasy 170/55 (р.о.) | C31: 4209560 | G31: 0
A32: 43 | B32: kyasy 170/55 (р.о.) | C32: 4207901 | G32: 0
A33: 43 | B33: kyasy 400/100 (р.о.) | C33: 4202011 | G33: 0
A34: 43 | B34: kyasy 630/160 (р.о.) | C34: 4202048 | G34: 0
A35: 43 | B35: kyasy 1400/250 | C35: 4209583 | G35: 0
A36: 43 | B36: kyasy 1800/400 (р.о.) | C36: 4211900 | G36: 0
A37: 43 | B37: Вертикально-фрезерный станок 6М13П (р.о.) | C37: уточн. | G37: 3
B38: ИТОГО: | E38: 15 | F38: =SUM(F30:F36) -> 0 | G38: =SUM(G30:G37) -> 3 | H38: =SUM(H30:H36) -> 0 | I38: 0
A39: Цех 44
A40: 44 | B40: Гидравлический пресс ДГ-2434А | C40: 4209201 | G40: 5
A41: 44 | B41: Гидравлический пресс ДО-437 | C41: 4201787 | G41: 5
A42: 44 | B42: Гидравлический пресс ДО-437 | C42: 4201786 | G42: 5
A43: 44 | B43: Гидравлический пресс ДО-437 | C43: 4201788 | G43: 5
A44: 44 | B44: Гидравлический пресс ДО-437 | C44: 4201785 | G44: 5
A45: 44 | B45: Гидравлический пресс ДА-2238 | C45: 4201936 | G45: 5
A46: 44 | B46: Гидравлический пресс ДГ-2434А | C46: 4204241 | G46: 5
A47: 44 | B47: Гидравлический пресс ДО-437 | C47: 4204331 | G47: 5
A48: 44 | B48: Пресс однокривошипный КД-2126 765 (р.о.) | C48: 4205763 | G48: 5
A49: 44 | B49: Пресс однокривошипный КД-2126 764 | C49: 4205762 | G49: 5
A50: 44 | B50: Линия для про-ва труб 591831 ЛТ УОх25 | C50: 4202182 | G50: 5
A51: 44 | B51: Форма выдувная на "Бачок смывателя" | C51: 4509136
A52: 44 | B52: Форма выдувная на "Воздуховод задний" | C52: 4509132
A53: 44 | B53: Форма выдувная на "Воздуховод левый" | C53: 4509135
A54: 44 | B54: Форма выдувная на "Воздуховод правый" | C54: 4509138
A55: 44 | B55: Форма выдувная на "Воздухозаборник" | C55: 4509131 | F55: 1
A56: 44 | B56: Форма выдувная на "патрубок левый" | C56: 4509133 | F56: 1
A57: 44 | B57: Форма выдувная на "патрубок правый" | C57: 4509139 | F57: 1
A58: 44 | B58: Форма выдувная на "переходник" | C58: 4509137 | F58: 1
A59: 44 | B59: Форма выдувная на "переходник" | C59: 4509134 | F59: 1
A60: 44 | B60: Приспособление для обрезки изд. 3111 | C60: 4509147
A61: 44 | B61: Приспособление для обрезки патрубк.. 3111 | C61: 4509146
A62: 44 | B62: Фильеры для получения сетки | C62: 4509541
A63: 44 | B63: Форма на сетку для офисных стульев | C63: 4509117
A64: 44 | B64: Головка на пруток | C64: 4509119
A65: 44 | B65: Головка на пруток | C65: 4509120
A66: 44 | B66: Головка на пруток | C66: 4509121
B67: ИТОГО: | E67: =SUM(E40:E66) -> 0 | F67: =SUM(F40:F66) -> 5 | G67: =SUM(G40:G66) -> 55 | H67: 0 | I67: 0
A68: Цех 46
A69: 46 | B69: Дробилка слитков | C69: 4212051 | F69: 5 | G69: 2
B70: ИТОГО: | E70: =SUM(E69) -> 0 | F70: =SUM(F69) -> 5 | G70: =SUM(G69) -> 2 | H70: 0 | I70: 0
A71: Цех 49
A72: 49 | B72: Емкость нерж. 5 шт. | C72: 4210810-14 | H72: 3
A73: 49 | B73: Реактор | C73: 4209460 | F73: 2
B74: ИТОГО: | E74: =SUM(E72:E73) -> 0 | F74: =SUM(F72:F73) -> 2 | G74: =SUM(G72:G73) -> 0 | H74: 3 | I74: 0
A75: Цех 51
A76: 51 | B76: Производство ПКП (р.о.) | C76: уточн. | F76: 20 | I76: 10
B77: ИТОГО: | E77: =SUM(E76) -> 0 | F77: =SUM(F76) -> 20 | G77: =SUM(G76) -> 0 | H77: =SUM(H76) -> 0 | I77: =SUM(I76) -> 10
A78: Цех 52
A79: 52 | B79: Пресс ДА 2243 (р.о.) | C79: уточн. | G79: 20
B80: ИТОГО | G80: 20
A81: Цех 56
A82: 56 | B82: Металлолом с открытых площадок | C82: б/н | F82: 12 | G82: 12
A83: 56 | B83: Пресс-формы склад 79 | C83: б/н | E83: 100
B84: ИТОГО: | E84: 100 | F84: =SUM(F82) -> 12 | G84: =SUM(G82) -> 12 | H84: =SUM(H82) -> 0 | I84: =SUM(I82) -> 0
A85: Цех 60
A86: 60 | B86: Станок токарный РТ-40 (р.о.) | C86: уточн. | G86: 3
A87: 60 | B87: Токарно-винторезный станок 1К62 - 2 шт. (р.о.) | C87: уточн. | G87: 6
A88: 60 | B88: Внутришлифовальный станок 3А228(р.о.) | C88: уточн. | G88: 3
A89: 60 | B89: Координатно-расточной станок 2А450 (р.о.) | C89: уточн. | G89: 3
B90: ИТОГО | G90: 15
A91: Цех 62
A92: 62 | B92: ТОКАРНЫЙ СТАНОК 625 (р.о.) | C92: 4203423 | F92: 2
A93: 62 | B93: РАБОЧЕЕ МЕСТО РЕГУЛИРОВЩИКА ЯМ 64.104.000-01 | C93: 4203444 | F93: 0.5
A94: 62 | B94: РАБОЧЕЕ МЕСТО РЕГУЛИРОВЩИКА ЯМ 64.104.000-01 | C94: 4203445 | F94: 1
A95: 62 | B95: СТАНОК РЯДОВОЙ НАМОТКИ СРН-0,5 | C95: 4203446 | F95: 1
A96: 62 | B96: РАБОЧЕЕ МЕСТО МОНТАЖНИКА К25.199 | C96: 4209488 | F96: 1
A97: 62 | B97: РАБОЧЕЕ МЕСТО МОНТАЖНИКА К25.199 | C97: 4209489 | F97: 1
A98: 62 | B98: ОБРАЗЦОВЫЙ МЕРНИК 2 РАЗ НА 100 литров | C98: 4300861 | F98: 1
A99: 62 | B99: ОБРАЗЦОВЫЙ МЕРНИК 2 РАЗ НА 50 литров | C99: 4300862 | F99: 1
A100: 62 | B100: БЛОК Б5-47 | C100: 4305471 | F100: 1
A101: 62 | B101: ПРИБОР С1-49 (ОСЦИЛЛОГРАФ) | C101: 4305507
A102: 62 | B102: ИЗМЕРИТЕЛЬ ЕМКОСТЕЙ Е7-11 | C102: 4305554 | F102: 1
A103: 62 | B103: ИЗМЕРИТЕЛЬ ДОБРОТНОСТИ Е7-9 | C103: 4305754 | F103: 1
A104: 62 | B104: НАБОР ИНСТРУМЕНТА ДЛЯ ОБСЛУЖИВАНИЯ МИКРОПРОЦЕССОРНОЙ ТЕХНИКИ | C104: 6007920
A105: 62 | B105: НАБОР ИНСТРУМЕНТА ДЛЯ ОБСЛУЖИВАНИЯ МИКРОПРОЦЕССОРНОЙ ТЕХНИКИ | C105: 6007921
A106: 62 | B106: РАБОЧЕЕ МЕСТО РЕГУЛИРОВЩИКА ЯМ 64.104.000-01 | C106: 7011614 | F106: 1
A107: 62 | B107: РАБОЧЕЕ МЕСТО РЕГУЛИРОВЩИКА ЯМ 64.104.000-01 | C107: 7011615 | F107: 1
A108: 62 | B108: Вертикально-фрезерный станок 675 | C108: уточн. | G108: 3
B109: ИТОГО: | E109: =SUM(E92:E107) -> 0 | F109: =SUM(F92:F107) -> 13.5 | G109: 3 | H109: =SUM(H92:H107) -> 0 | I109: =SUM(I92:I107) -> 0
A110: ВСЕГО | E110: =SUM(E13,E18,E28,E38,E67,E70,E74,E77,E84,E109) -> 115 | F110: 167.5 | G110: 75 | H110: 13 | I110: 320
B112: Директор по региональной политике | F112: О.Г. Изабакаров
B114: Главный инженер-руководитель производств | F114: П.М. Агафонов
B116: Главный механик | F116: С.Г. Дубинкин
B118: Начальник ОВА | F118: С.В. Иванов

Sheet Лист2
A1: План демонтажа оборудования и реализации металлического лома на 2014 г. | P1: 3А | Q1: 5А, 12А | R1: 22А | S1: Нержав. | T1: алюминий
P2: 6800 | Q2: 5600 | R2: 4800 | S2: 32000 | T2: 41000
A3: Цех / Производство (указать номер) | B3: Наименование демонтируемого оборудования | C3: Инв. № | D3: Остаточная стоимость, руб. | E3: Объем лома (экспертно), тн | I3: Доход от реализации металлолома, тыс.р. | M3: Планируемые сроки демонтажа и реализации (указать месяц 1-12)
E4: 3А, 5А, 12А (сталь) | F4: 22А (чугун) | G4: Нержав. | H4: Цв. Лом | I4: 3А, 5А, 12А (сталь) | J4: 22А (чугун) | K4: Нержав. | L4: Цв. Лом | M4: Начало | N4: Конец
A5: Незавершенное строительство
A6: н/стр-во | B6: силосный склад п/этилена | C6: б/н | D6: 2080124 | H6: 300 | I6: =E6*$Q$2/1000 -> 0 | J6: =F6*$R$2/1000 -> 0 | K6: =G6*$S$2/1000 -> 0 | L6: =H6*$T$2/1000 -> 12300 | M6: 1 | N6: 12
B7: ИТОГО: | E7: =E6 -> 0 | F7: =F6 -> 0 | G7: 0 | H7: 300 | I7: =SUM(I6:L6) -> 12300
A8: Цех 40
A9: 40 | B9: участок "Авиация" (давальческая оснастка) | C9: б/н | D9: 0 | H9: 10 | I9: =E9*$Q$2/1000 -> 0 | J9: =F9*$R$2/1000 -> 0 | K9: =G9*$S$2/1000 -> 0 | L9: =H9*$T$2/1000 -> 410 | M9: 1 | N9: 12
A10: 40 | B10: станок СИТ | C10: 4202574 | D10: 0 | E10: 50 | I10: 280 | J10: 0 | K10: 0 | L10: 0 | M10: 1 | N10: 12
A11: 40 | B11: станок "Кабестан" | C11: 4202594 | D11: 0 | E11: 20 | I11: 112 | J11: 0 | K11: 0 | L11: 0 | M11: 1 | N11: 12
B12: ИТОГО: | E12: =SUM(E9:E11) -> 70 | F12: =SUM(F9:F11) -> 0 | G12: 0 | H12: 10 | I12: =SUM(I9:L11) -> 802
A13: Цех 41
A14: 41 | B14: Линия мол.плёнки | C14: 4205084 | D14: 0 | E14: 5 | I14: 28 | J14: 0 | K14: 0 | L14: 0 | M14: 1 | N14: 12
A15: 41 | B15: Гранулятор типа Кондукс | C15: 4205163 | D15: 0 | E15: 5 | I15: 28 | J15: 0 | K15: 0 | L15: 0 | M15: 1 | N15: 12
A16: 41 | B16: Станок плоско-шлифовальный | C16: 4202307 | D16: 0 | E16: 2 | I16: 11.2 | J16: 0 | K16: 0 | L16: 0 | M16: 1 | N16: 12
A17: 41 | B17: измельчитель ИПР-300 (на грануляторе омикрон№2) | C17: 4205876 | D17: 0 | E17: 2 | I17: 11.2 | J17: 0 | K17: 0 | L17: 0 | M17: 1 | N17: 12
A18: 41 | B18: ЛРП-160-300 №2 | C18: 4202341 | D18: 0 | E18: 8 | I18: 44.8 | J18: 0 | K18: 0 | L18: 0 | M18: 1 | N18: 12
A19: 41 | B19: ЛРП-160-300 №1 | C19: 4202314 | D19: 0 | E19: 8 | I19: 44.8 | J19: 0 | K19: 0 | L19: 0 | M19: 1 | N19: 12
A20: 41 | B20: 6цв.машина FX-680 | C20: 4210230 | D20: 1814548 | E20: 10 | I20: 56 | J20: 0 | K20: 0 | L20: 0 | M20: 1 | N20: 12
A21: 41 | B21: Бункера для хранения сырья 12шт (цвет металл) | C21: 4202358 | D21: 0 | G21: 10 | I21: 0 | J21: 0 | K21: 320 | L21: 0 | M21: 1 | N21: 12
B22: ИТОГО: | E22: =SUM(E14:E21) -> 40 | F22: =SUM(F14:F21) -> 0 | G22: 10 | H22: 0 | I22: =SUM(I14:L21) -> 544
A23: Цех 43
A24: 43 | B24: пресс-формы | C24: б/н | D24: 0 | E24: 15 | I24: =E24*$P$2/1000 -> 102 | J24: 0 | K24: 0 | L24: 0 | M24: 1 | N24: 12
A25: 43 | B25: kyasy 170/55 | C25: 4209560 | D25: 0 | F25: 2 | I25: 0 | J25: 9.6 | K25: 0 | L25: 0 | M25: 1 | N25: 12
A26: 43 | B26: kyasy 170/55 | C26: 4207901 | D26: 0 | F26: 2 | I26: 0 | J26: 9.6 | K26: 0 | L26: 0 | M26: 1 | N26: 12
A27: 43 | B27: kyasy 400/100 | C27: 4202011 | D27: 0 | F27: 2 | I27: 0 | J27: 9.6 | K27: 0 | L27: 0 | M27: 1 | N27: 12
A28: 43 | B28: kyasy 630/160 | C28: 4202048 | D28: 0 | F28: 2 | I28: 0 | J28: 9.6 | K28: 0 | L28: 0 | M28: 1 | N28: 12
A29: 43 | B29: kyasy 1400/250 | C29: 4209583 | D29: 0 | F29: 2 | I29: 0 | J29: 9.6 | K29: 0 | L29: 0 | M29: 1 | N29: 12
A30: 43 | B30: kyasy 1800/400 | C30: 4211900 | D30: 0 | F30: 2 | I30: 0 | J30: 9.6 | K30: 0 | L30: 0 | M30: 1 | N30: 12
B31: ИТОГО: | E31: =SUM(E24:E30) -> 15 | F31: =SUM(F24:F30) -> 12 | G31: 0 | H31: 0 | I31: =SUM(I24:L30) -> 159.6
A32: Цех 44
A33: 44 | B33: Гидравлический пресс ДГ-2434А | C33: 4209201 | D33: 0 | F33: 5 | I33: 0 | J33: 24 | K33: 0 | L33: 0 | M33: 1 | N33: 12
A34: 44 | B34: Гидравлический пресс ДО-437 | C34: 4201787 | D34: 0,00р | F34: 5 | I34: 0 | J34: 24 | K34: 0 | L34: 0 | M34: 1 | N34: 12
A35: 44 | B35: Гидравлический пресс ДО-437 | C35: 4201786 | D35: 0 | F35: 5 | I35: 0 | J35: 24 | K35: 0 | L35: 0 | M35: 1 | N35: 12
A36: 44 | B36: Гидравлический пресс ДО-437 | C36: 4201788 | D36: 0 | F36: 5 | I36: 0 | J36: 24 | K36: 0 | L36: 0 | M36: 1 | N36: 12
A37: 44 | B37: Гидравлический пресс ДО-437 | C37: 4201785 | D37: 0 | F37: 5 | I37: 0 | J37: 24 | K37: 0 | L37: 0 | M37: 1 | N37: 12
A38: 44 | B38: Гидравлический пресс ДА-2238 | C38: 4201936 | D38: 0 | F38: 5 | I38: 0 | J38: 24 | K38: 0 | L38: 0 | M38: 1 | N38: 12
A39: 44 | B39: Гидравлический пресс ДГ-2434А | C39: 4204241 | D39: 0 | F39: 5 | I39: 0 | J39: 24 | K39: 0 | L39: 0 | M39: 1 | N39: 12
A40: 44 | B40: Гидравлический пресс ДО-437 | C40: 4204331 | D40: 0 | F40: 5 | I40: 0 | J40: 24 | K40: 0 | L40: 0 | M40: 1 | N40: 12
A41: 44 | B41: Пресс однокривошипный КД-2126 765 | C41: 4205763 | D41: 0 | F41: 5 | I41: 0 | J41: 24 | K41: 0 | L41: 0 | M41: 1 | N41: 12
A42: 44 | B42: Пресс однокривошипный КД-2126 764 | C42: 4205762 | D42: 0 | F42: 5 | I42: 0 | J42: 24 | K42: 0 | L42: 0 | M42: 1 | N42: 12
A43: 44 | B43: Линия для про-ва труб 591831 ЛТ УОх25 | C43: 4202182 | D43: 0 | F43: 5 | I43: 0 | J43: 24 | K43: 0 | L43: 0 | M43: 1 | N43: 12
A44: 44 | B44: Форма выдувная на "Бачок смывателя" | C44: 4509136 | D44: 0 | E44: 0 | I44: 0 | J44: 0 | K44: 0 | L44: 0 | M44: 1 | N44: 12
A45: 44 | B45: Форма выдувная на "Воздуховод задний" | C45: 4509132 | D45: 0 | E45: 0 | I45: 0 | J45: 0 | K45: 0 | L45: 0 | M45: 1 | N45: 12
A46: 44 | B46: Форма выдувная на "Воздуховод левый" | C46: 4509135 | D46: 0 | E46: 0 | I46: 0 | J46: 0 | K46: 0 | L46: 0 | M46: 1 | N46: 12
A47: 44 | B47: Форма выдувная на "Воздуховод правый" | C47: 4509138 | D47: 0 | E47: 0 | I47: 0 | J47: 0 | K47: 0 | L47: 0 | M47: 1 | N47: 12
A48: 44 | B48: Форма выдувная на "Воздухозаборник" | C48: 4509131 | D48: 0 | E48: 1 | I48: 5.6 | J48: 0 | K48: 0 | L48: 0 | M48: 1 | N48: 12
A49: 44 | B49: Форма выдувная на "патрубок левый" | C49: 4509133 | D49: 0 | E49: 1 | I49: 5.6 | J49: 0 | K49: 0 | L49: 0 | M49: 1 | N49: 12
A50: 44 | B50: Форма выдувная на "патрубок правый" | C50: 4509139 | D50: 0 | E50: 1 | I50: 5.6 | J50: 0 | K50: 0 | L50: 0 | M50: 1 | N50: 12
A51: 44 | B51: Форма выдувная на "переходник" | C51: 4509137 | D51: 0 | E51: 1 | I51: 5.6 | J51: 0 | K51: 0 | L51: 0 | M51: 1 | N51: 12
A52: 44 | B52: Форма выдувная на "переходник" | C52: 4509134 | D52: 0 | E52: 1 | I52: 5.6 | J52: 0 | K52: 0 | L52: 0 | M52: 1 | N52: 12
A53: 44 | B53: Приспособление для обрезки изд. 3111 | C53: 4509147 | D53: 0 | E53: 0 | I53: 0 | J53: 0 | K53: 0 | L53: 0 | M53: 1 | N53: 12
A54: 44 | B54: Приспособление для обрезки патрубк.. 3111 | C54: 4509146 | D54: 0 | E54: 0 | I54: 0 | J54: 0 | K54: 0 | L54: 0 | M54: 1 | N54: 12
A55: 44 | B55: Фильеры для получения сетки | C55: 4509541 | D55: 0 | E55: 0 | I55: 0 | J55: 0 | K55: 0 | L55: 0 | M55: 1 | N55: 12
A56: 44 | B56: Форма на сетку для офисных стульев | C56: 4509117 | D56: 0 | E56: 0 | I56: 0 | J56: 0 | K56: 0 | L56: 0 | M56: 1 | N56: 12
A57: 44 | B57: Головка на пруток | C57: 4509119 | D57: 0 | E57: 0 | I57: 0 | J57: 0 | K57: 0 | L57: 0 | M57: 1 | N57: 12
A58: 44 | B58: Головка на пруток | C58: 4509120 | D58: 0 | E58: 0 | I58: 0 | J58: 0 | K58: 0 | L58: 0 | M58: 1 | N58: 12
A59: 44 | B59: Головка на пруток | C59: 4509121 | D59: 0 | E59: 0 | I59: 0 | J59: 0 | K59: 0 | L59: 0 | M59: 1 | N59: 12
B60: ИТОГО: | E60: =SUM(E33:E59) -> 5 | F60: =SUM(F33:F59) -> 55 | G60: 0 | H60: 0 | I60: =SUM(I33:L59) -> 292
A61: Цех 46
A62: 46 | B62: дробилка слитков | C62: 4212051 | D62: 505665 | E62: 5 | F62: 2 | I62: 28 | J62: 9.6 | K62: 0 | L62: 0 | M62: 1 | N62: 12
B63: ИТОГО: | E63: =SUM(E62) -> 5 | F63: =SUM(F62) -> 2 | G63: 0 | H63: 0 | I63: =SUM(I62:L62) -> 37.6
A64: Цех 49
A65: 49 | B65: емкость нерж. 5 шт. | C65: 4210810-14 | D65: 0 | G65: 3 | I65: 0 | J65: 0 | K65: 96 | L65: 0 | M65: 1 | N65: 12
A66: 49 | B66: реактор | C66: 4209460 | D66: 0 | E66: 2 | I66: 11.2 | J66: 0 | K66: 0 | L66: 0 | M66: 1 | N66: 12
B67: ИТОГО: | E67: =SUM(E65:E66) -> 2 | F67: =SUM(F65:F66) -> 0 | G67: 3 | H67: 0 | I67: =SUM(I65:L66) -> 107.2
A68: Цех 51
A69: 51 | B69: производство ПКП (моб.мощности, СТО) | C69: уточн. | D69: уточн. | E69: 20 | H69: 10 | I69: 112 | J69: 0 | K69: 0 | L69: 410 | M69: 1 | N69: 12
B70: ИТОГО: | E70: =SUM(E69) -> 20 | F70: =SUM(F69) -> 0 | G70: 0 | H70: 10 | I70: =SUM(I69:L69) -> 522
A71: Цех 56
A72: 56 | B72: металлолом с открытых площадок | C72: б/н | D72: 0 | E72: 12 | F72: 12 | I72: 67.2 | J72: 57.6 | K72: 0 | L72: 0 | M72: 1 | N72: 12
B73: ИТОГО: | E73: =SUM(E72) -> 12 | F73: =SUM(F72) -> 12 | G73: 0 | H73: 0 | I73: =SUM(I72:L72) -> 124.8
A74: Цех 62
A75: 62 | B75: ТОКАРНЫЙ СТАНОК 625 | C75: 4203423 | D75: 7212.77 | E75: 2 | I75: 11.2 | J75: 0 | K75: 0 | L75: 0 | M75: 1 | N75: 12
A76: 62 | B76: РАБОЧЕЕ МЕСТО РЕГУЛИРОВЩИКА ЯМ 64.104.000-01 | C76: 4203444 | D76: 1387.16 | E76: 0.5 | I76: 2.8 | J76: 0 | K76: 0 | L76: 0 | M76: 1 | N76: 12
A77: 62 | B77: РАБОЧЕЕ МЕСТО РЕГУЛИРОВЩИКА ЯМ 64.104.000-01 | C77: 4203445 | D77: 1387.16 | E77: 1 | I77: 5.6 | J77: 0 | K77: 0 | L77: 0 | M77: 1 | N77: 12
A78: 62 | B78: СТАНОК РЯДОВОЙ НАМОТКИ СРН-0,5 | C78: 4203446 | D78: 2276.22 | E78: 1 | I78: 5.6 | J78: 0 | K78: 0 | L78: 0 | M78: 1 | N78: 12
A79: 62 | B79: РАБОЧЕЕ МЕСТО МОНТАЖНИКА К25.199 | C79: 4209488 | D79: 1194.5 | E79: 1 | I79: 5.6 | J79: 0 | K79: 0 | L79: 0 | M79: 1 | N79: 12
A80: 62 | B80: РАБОЧЕЕ МЕСТО МОНТАЖНИКА К25.199 | C80: 4209489 | D80: 1194.5 | E80: 1 | I80: 5.6 | J80: 0 | K80: 0 | L80: 0 | M80: 1 | N80: 12
A81: 62 | B81: ОБРАЗЦОВЫЙ МЕРНИК 2 РАЗ НА 100 литров | C81: 4300861 | D81: 1407.14 | E81: 1 | I81: 5.6 | J81: 0 | K81: 0 | L81: 0 | M81: 1 | N81: 12
A82: 62 | B82: ОБРАЗЦОВЫЙ МЕРНИК 2 РАЗ НА 50 литров | C82: 4300862 | D82: 1178.96 | E82: 1 | I82: 5.6 | J82: 0 | K82: 0 | L82: 0 | M82: 1 | N82: 12
A83: 62 | B83: БЛОК Б5-47 | C83: 4305471 | D83: 1432.34 | E83: 1 | I83: 5.6 | J83: 0 | K83: 0 | L83: 0 | M83: 1 | N83: 12
A84: 62 | B84: ПРИБОР С1-49 (ОСЦИЛЛОГРАФ) | C84: 4305507 | D84: 1102.55 | E84: 1 | I84: 5.6 | J84: 0 | K84: 0 | L84: 0 | M84: 1 | N84: 12
A85: 62 | B85: ИЗМЕРИТЕЛЬ ЕМКОСТЕЙ Е7-11 | C85: 4305554 | D85: 923.12 | E85: 1 | I85: 5.6 | J85: 0 | K85: 0 | L85: 0 | M85: 1 | N85: 12
A86: 62 | B86: ИЗМЕРИТЕЛЬ ДОБРОТНОСТB Е7-9 | C86: 4305754 | D86: 831.84 | E86: 1 | I86: 5.6 | J86: 0 | K86: 0 | L86: 0 | M86: 1 | N86: 12
A87: 62 | B87: НАБОР ИНСТРУМЕНТА ДЛЯ ОБСЛУЖИВАНИЯ МИКРОПРОЦЕССЕРНОЙ ТЕХНИКИ | C87: 6007920 | D87: 0.01 | E87: 0 | I87: 0 | J87: 0 | K87: 0 | L87: 0 | M87: 1 | N87: 12
A88: 62 | B88: НАБОР ИНСТРУМЕНТА ДЛЯ ОБСЛУЖИВАНИЯ МИКРОПРОЦЕССЕРНОЙ ТЕХНИКИ | C88: 6007921 | D88: 0.01 | E88: 0 | I88: 0 | J88: 0 | K88: 0 | L88: 0 | M88: 1 | N88: 12
A89: 62 | B89: РАБОЧЕЕ МЕСТО РЕГУЛИРОВЩИКА ЯМ 64.104.000-01 | C89: 7011614 | D89: 1599.25 | E89: 1 | I89: =E89*$Q$2/1000 -> 5.6 | J89: =F89*$R$2/1000 -> 0 | K89: =G89*$S$2/1000 -> 0 | L89: =H89*$T$2/1000 -> 0 | M89: 1 | N89: 12
A90: 62 | B90: РАБОЧЕЕ МЕСТО РЕГУЛИРОВЩИКА ЯМ 64.104.000-01 | C90: 7011615 | D90: 1599.25 | E90: 1 | I90: 5.6 | J90: 0 | K90: 0 | L90: 0 | M90: 1 | N90: 12
A91: 62 | B91: ЧАЙНИК ЭЛЕКТРИЧЕСКИЙ VT-1126 | C91: 8015297 | D91: 0.01 | E91: 0 | I91: 0 | J91: 0 | K91: 0 | L91: 0 | M91: 1 | N91: 12
B92: ИТОГО: | E92: =SUM(E75:E91) -> 14.5 | F92: =SUM(F75:F91) -> 0 | G92: 0 | H92: 0 | I92: =SUM(I75:L91) -> 81.2
A93: ВСЕГО | D93: =SUM(D6:D92)/1000 -> 4425.06379 | E93: =SUM(E7,E12,E22,E31,E60,E63,E67,E70,E73,E92) -> 183.5 | F93: =SUM(F7,F12,F22,F31,F60,F63,F67,F70,F73,F92) -> 81 | G93: 13 | H93: 320 | I93: =SUM(I7,I12,I22,I31,I60,I63,I67,I70,I73,I92) -> 14970.4

Sheet Лист3
